bitfinex/quotes_ETHUSD_20241104
["timestamp","ask_amount","ask_price","bid_price","bid_amount"]
[1730741659313,4.11807,2428.4,2427.9,4.90625]
[1730741659843,8.23543,2428.6,2428.0,4.38199099]
[1730741659997,4.1177,2428.6,2428.1,4.11841]
[1730741660395,4.11737,2428.8,2428.3,4.11796]
[1730741660840,4.11737,2428.8,2428.3,8.23592]
[1730741661045,4.11737,2428.8,2428.1,0.902449]
[1730741661046,0.64506991,2428.9,2428.4,4.11778]
[1730741661233,0.64506991,2428.9,2428.5,4.11776]
[1730741661434,4.11701,2429.0,2428.5,4.11776]
[1730741661745,7.72167504,2429.2,2428.7,4.11729]
[1730741661746,4.11668,2429.2,2428.7,4.11729]
[1730741661943,4.11648,2429.3,2428.7,4.11729]
[1730741662149,4.11665,2429.2,2428.7,4.11729]
[1730741662440,4.11665,2429.2,2428.7,8.23462]
[1730741662745,4.11665,2429.2,2428.7,4.11729]
[1730741662922,4.11707,2429.0,2428.5,4.11762]
[1730741663242,0.55,2429.0,2428.6,4.11751]
[1730741663430,0.55,2429.1,2428.7,4.1174]
[1730741663807,0.55,2429.1,2428.7,8.23475]
[1730741664015,0.55,2429.1,2428.7,4.11733]
[1730741665149,0.55,2429.0,2428.5,4.11764]
[1730741665359,0.55,2429.0,2428.6,4.11759]
[1730741666217,4.66695,2429.0,2428.5,4.605564]
[1730741666616,4.66695,2429.0,2428.5,8.723254]
[1730741667135,4.66695,2429.0,2428.5,4.605564]
[1730741667333,4.66695,2429.0,2428.6,4.11757]
[1730741668448,0.55,2429.0,2428.6,4.1175]
[1730741668821,0.55,2429.0,2428.5,4.11766]
[1730741669025,4.66726,2428.8,2428.4,4.11786]
[1730741669243,0.55,2428.8,2428.5,4.11774]
[1730741669540,0.55,2428.8,2428.4,4.11785]
[1730741669719,0.55,2428.8,2428.5,4.11775]
[1730741670439,0.55,2428.8,2428.4,8.2357]
[1730741670636,0.55,2428.8,2428.4,4.11785]
[1730741670847,0.55,2428.8,2428.4,8.2357]
[1730741671220,0.55,2428.8,2428.4,9.05927]
[1730741671559,4.66727,2428.8,2428.4,0.82357]
[1730741671721,4.66727,2428.8,2428.3,4.118]
[1730741672552,2.57782863,2429.8,2428.7,3.58495504]
[1730741672751,2.57782863,2429.8,2429.4,4.11624]
[1730741674826,2.57782863,2429.8,2429.3,4.1164]
[1730741675015,4.11574,2429.7,2429.3,4.1164]
[1730741675223,6.69346863,2429.8,2429.4,4.11624]
[1730741675768,2.57782863,2429.8,2429.4,4.11624]
[1730741676826,4.11566,2429.8,2429.2,0.7501]
[1730741677148,4.11597,2429.6,2429.1,4.11666]
[1730741677454,4.11597,2429.6,2429.2,4.11644]
[1730741677455,4.11598,2429.6,2429.2,4.11644]
[1730741677657,8.23201,2429.6,2429.1,4.11667]
[1730741677853,4.11598,2429.6,2429.1,4.11667]
[1730741678056,8.23199,2429.6,2429.1,4.11667]
[1730741678268,4.11598,2429.6,2429.1,4.11667]
[1730741678568,4.11598,2429.6,2429.2,4.11657]
[1730741678924,4.11573,2429.7,2429.2,4.1165]
[1730741679148,4.11591,2429.6,2429.2,4.52815]
[1730741679514,4.11591,2429.6,2429.2,4.1165]
[1730741679769,4.1753255,2429.5,2429.0,4.11682]
[1730741680016,4.1753255,2429.5,2429.0,4.11678]
[1730741680516,4.1753255,2429.5,2428.9,0.7507]
[1730741680720,4.1753255,2429.5,2429.0,4.11684]
[1730741681019,0.0591655,2429.5,2429.2,4.11657]
[1730741681219,0.0591655,2429.5,2429.1,4.11667]
[1730741681435,4.1753355,2429.5,2429.1,4.11667]
[1730741681816,0.0591655,2429.5,2429.0,0.486754]
[1730741682016,0.0591655,2429.5,2429.3,4.1164]
[1730741683446,0.0591655,2429.5,2429.2,4.1165]
[1730741684266,0.0591655,2429.5,2429.3,4.11639]
[1730741685159,0.0591655,2429.5,2429.4,4.90344]
[1730741685527,0.0591655,2429.5,2429.4,4.98575909]
[1730741685728,4.76915786,2430.5,2430.0,0.8289]
[1730741685729,4.11458,2430.4,2430.0,0.8289]
[1730741685963,4.17378,2430.4,2429.9,4.11528]
[1730741686182,4.11488,2430.3,2429.6,4.94468]
[1730741686349,4.11515,2430.1,2429.6,9.06049]
[1730741686559,4.11515,2430.1,2429.7,4.11572]
[1730741686885,4.11497,2430.2,2429.7,0.67768187]
[1730741687046,0.55,2430.1,2429.7,4.79339187]
[1730741688080,0.55,2430.1,2429.8,4.11555]
[1730741688261,0.55,2430.1,2429.7,4.79339187]
[1730741688643,0.55,2430.1,2429.8,4.11551]
[1730741688953,0.55,2430.1,2429.7,4.79339187]
[1730741689154,0.55,2430.1,2429.7,8.90905187]
[1730741689483,0.55,2430.1,2429.8,4.11547]
[1730741689848,4.11421,2430.6,2429.8,4.11547]
[1730741689849,0.0592,2430.6,2429.8,4.11547]
[1730741690055,0.55,2430.2,2429.9,4.11532]
[1730741690383,4.6646,2430.4,2430.0,4.11519]
[1730741692336,4.6646,2430.4,2429.7,0.67768187]
[1730741692337,0.55,2430.2,2429.7,0.67768187]
[1730741692544,4.11506,2430.1,2429.7,4.1156]
[1730741693245,4.66498,2430.2,2429.8,4.11546]
[1730741694578,4.66498,2430.2,2429.7,4.11566]
[1730741695096,4.11523,2430.0,2429.6,4.94471]
[1730741695238,4.66552,2429.9,2429.4,4.8991]
[1730741695442,4.66552,2429.9,2429.5,4.11599]
[1730741696489,0.55,2429.7,2429.4,4.89905]
[1730741696854,4.66581,2429.7,2429.4,0.7829]
[1730741697543,4.66581,2429.7,2429.3,4.11638]
[1730741697744,4.72501,2429.7,2429.4,0.26349898]
[1730741697976,4.72501,2429.7,2429.3,4.11638]
[1730741698275,4.72501,2429.7,2429.4,0.26338838]
[1730741698477,4.72501,2429.7,2429.3,4.11638]
[1730741698681,4.72495,2429.7,2429.4,0.26346643]
[1730741698889,4.72495,2429.7,2429.3,4.1163]
[1730741699092,4.72495,2429.7,2429.4,0.26356478]
[1730741699302,4.72495,2429.7,2429.3,4.11627]
[1730741699480,4.72495,2429.7,2429.4,0.26374267]
[1730741699658,0.6092,2429.7,2429.3,4.11627]
[1730741699991,0.6092,2429.7,2429.4,4.37998793]
[1730741700190,0.6092,2429.7,2429.5,0.26374793]
[1730741700356,0.6092,2429.7,2429.4,4.11624]
[1730741700558,0.6092,2429.7,2429.5,0.26387551]
[1730741700757,0.6092,2429.7,2429.4,4.11624]
[1730741701090,0.6092,2429.7,2429.5,0.2638728]
[1730741701295,4.12493,2430.2,2429.7,4.11558]
[1730741701296,4.11497,2430.2,2429.7,4.11558]
[1730741701601,4.66506,2430.1,2429.8,0.2638728]
[1730741701900,4.66506,2430.1,2429.7,4.93218]
[1730741702258,4.66506,2430.1,2429.8,0.26411063]
[1730741702458,4.66506,2430.1,2429.7,4.93218]
[1730741702459,4.66506,2430.1,2429.9,0.26437161]
[1730741702695,4.66506,2430.1,2429.7,4.93218]
[1730741702996,0.55,2429.9,2429.8,0.26437244]
[1730741704464,0.6092,2429.9,2429.8,0.26437244]
[1730741705256,4.11556,2429.8,2429.3,4.89168]
[1730741705459,0.55,2429.7,2429.4,4.80372655]
[1730741705711,4.17459,2429.9,2429.5,4.80360655]
[1730741705712,0.55,2429.8,2429.5,4.80360655]
[1730741705997,4.66529,2430.0,2429.6,4.80333655]
[1730741706204,4.66529,2430.0,2429.7,0.26443941]
[1730741706365,4.66529,2430.0,2429.8,0.26443941]
[1730741706568,4.66529,2430.0,2429.6,4.11578]
[1730741706767,4.66529,2430.0,2429.7,0.26450411]
[1730741707069,4.11548,2429.9,2429.8,0.2645753]
[1730741707301,4.66563,2429.8,2429.4,4.11612]
[1730741707464,4.66563,2429.8,2429.5,0.68801751]
[1730741707660,4.66563,2429.8,2429.6,0.68801751]
[1730741707874,4.66563,2429.8,2429.7,0.2646167]
[1730741708209,4.72483,2429.8,2429.7,0.2646167]
[1730741708926,5.608861,2429.8,2429.3,0.7753]
[1730741709132,0.55,2429.6,2429.3,4.89165]
[1730741709295,0.55,2429.6,2429.4,4.8043376]
[1730741709502,0.55,2429.7,2429.5,0.26465135]
[1730741709795,0.55,2429.7,2429.6,0.26467299]
[1730741711785,4.66573,2429.7,2429.6,0.26467299]
[1730741711987,0.55,2429.7,2429.6,0.26467299]
[1730741712290,4.66513,2430.1,2429.7,4.11571]
[1730741712688,4.66513,2430.1,2429.8,0.26456788]
[1730741712889,4.66513,2430.1,2429.7,4.93331]
[1730741713093,4.66513,2430.1,2429.8,0.26455795]
[1730741713286,4.66513,2430.1,2429.7,4.93331]
[1730741713615,0.55,2430.1,2429.8,4.38001483]
[1730741713787,0.55,2430.1,2429.8,4.11543]
[1730741713984,0.55,2430.1,2429.7,0.8176]
[1730741714286,0.55,2430.1,2429.8,0.26456965]
[1730741714483,0.55,2430.1,2429.7,0.8176]
[1730741714687,0.55,2430.1,2429.8,0.26463076]
[1730741714889,0.55,2430.1,2429.7,0.8176]
[1730741715198,4.11445,2430.5,2429.8,4.46250958]
[1730741715401,4.11445,2430.5,2430.0,0.8197]
[1730741716196,8.22895,2430.5,2430.0,0.8197]
[1730741716398,4.11421,2430.6,2430.0,0.8197]
[1730741716606,0.55,2430.5,2430.0,0.8197]
[1730741716929,4.66451,2430.5,2430.0,0.8197]
[1730741718219,4.1732955,2430.7,2430.0,0.8197]
[1730741718538,4.11424,2430.6,2430.0,1.33964696]
[1730741719335,0.0591655,2430.7,2430.0,0.8197]
[1730741719635,4.11454,2430.4,2430.0,0.8197]
[1730741719835,0.55,2430.3,2430.0,0.8197]
[1730741723323,0.55,2430.3,2429.8,4.91903]
[1730741723755,0.55,2430.3,2429.9,4.11536]
[1730741724355,0.55,2430.3,2429.9,1.2527749]
[1730741724657,0.55,2430.3,2429.9,9.4833949]
[1730741724850,0.0592,2430.4,2429.9,9.4833949]
[1730741724851,0.55,2430.4,2429.9,9.4833949]
[1730741725257,0.55,2430.4,2429.9,5.3680849]
[1730741725563,4.66461,2430.4,2429.9,5.3680649]
[1730741725768,4.66461,2430.4,2430.0,4.11522]
[1730741726085,4.66461,2430.4,2429.9,1.2527749]
[1730741726285,4.66461,2430.4,2429.9,4.11538]
[1730741726658,0.55,2430.2,2429.8,4.91892]
[1730741726882,0.55,2430.2,2429.9,4.11538]
[1730741727088,0.55,2430.2,2429.8,4.91903]
[1730741727089,4.11489,2430.2,2429.8,4.91903]
[1730741727276,0.55,2430.1,2429.8,4.91903]
[1730741728228,0.55,2430.1,2429.8,0.8035]
[1730741728367,0.55,2430.1,2429.8,4.91899]
[1730741729381,4.66473,2430.3,2429.9,4.11538]
[1730741731213,4.66473,2430.3,2429.8,0.8035]
[1730741731491,5.132203,2430.3,2429.8,4.91905]
[1730741732008,0.01,2430.5,2429.8,4.91905]
[1730741732009,0.55,2430.1,2430.0,4.11522]
[1730741732203,0.16406965,2430.2,2430.1,4.11505]
[1730741732500,4.11457,2430.4,2430.1,0.8191]
[1730741732658,0.16408105,2430.2,2429.9,4.11531]
[1730741732865,4.11457,2430.4,2429.9,4.11528]
[1730741733063,0.16408105,2430.1,2429.9,4.11528]
[1730741733305,0.0592,2430.3,2429.9,5.02058]
[1730741733603,0.16408105,2430.0,2429.9,4.11536]
[1730741733771,0.55,2430.0,2429.8,0.8213]
[1730741734105,0.16409469,2429.9,2429.7,4.1156]
[1730741734256,0.16409469,2429.9,2429.8,4.11556]
[1730741736508,0.55,2430.2,2429.9,4.11538]
[1730741737364,0.55,2430.2,2429.9,4.11532]
[1730741737591,0.55,2430.2,2429.9,4.11526]
[1730741738783,0.16406965,2430.1,2429.9,4.11526]
[1730741739276,0.71406965,2430.1,2430.0,4.88272]
[1730741739602,0.71406965,2430.1,2429.9,4.11526]
[1730741739769,0.71406965,2430.1,2430.0,4.11522]
[1730741740610,0.16406965,2430.1,2430.0,5.015018]
[1730741740820,0.55,2430.4,2430.0,5.015018]
[1730741741111,0.55,2430.4,2430.1,4.11493]
[1730741741470,0.55,2430.4,2430.0,4.11522]
[1730741741671,0.55,2430.2,2429.9,4.11537]
[1730741741904,0.55,2430.2,2430.0,4.11505]
[1730741742107,0.55,2430.4,2430.0,4.11509]
[1730741742271,0.0592,2430.6,2430.2,4.11477]
[1730741742469,0.0592,2430.6,2430.3,4.11461]
[1730741743219,4.17342,2430.6,2430.2,4.91197]
[1730741743816,0.55,2430.5,2430.2,9.02678]
[1730741744018,0.55,2430.5,2430.3,4.11463]
[1730741744673,0.55,2430.6,2430.3,4.11463]
[1730741745112,0.55,2430.6,2430.2,0.7972]
[1730741745113,4.11449,2430.5,2430.2,0.7972]
[1730741745317,0.55,2430.4,2430.1,4.11498]
[1730741745677,0.55,2430.4,2430.1,4.0563404]
[1730741748119,4.66427,2430.6,2430.2,4.90511]
[1730741749339,4.11455,2430.4,2430.2,0.7903]
[1730741749613,4.11455,2430.4,2430.1,4.11505]
[1730741749824,4.11455,2430.4,2430.0,4.89438]
[1730741749995,4.66422,2430.6,2430.2,4.11481]
[1730741750398,0.55,2430.4,2430.1,4.89421]
[1730741750720,5.54796055,2430.6,2430.2,0.1287655]
[1730741750884,0.55,2430.6,2430.3,4.11463]
[1730741751720,4.66424,2430.6,2430.2,4.11486]
[1730741752421,0.55,2430.6,2430.3,4.1147]
[1730741752620,0.55,2430.6,2430.2,4.11486]
[1730741752915,0.55,2430.6,2430.3,4.11471]
[1730741753729,0.16412202,2430.5,2430.3,4.11471]
[1730741754095,0.16412202,2430.5,2430.4,4.11454]
[1730741754292,0.16412202,2430.5,2430.4,0.8007]
[1730741754721,0.16412202,2430.5,2430.4,4.91524]
[1730741756419,0.0591655,2430.7,2430.5,4.11433]
[1730741757040,4.1732155,2430.7,2430.4,0.8007]
[1730741757221,4.1732155,2430.7,2430.3,4.11461]
[1730741757222,0.82871555,2430.6,2430.3,4.11461]
[1730741757408,0.82871555,2430.6,2430.1,4.92348]
[1730741757409,4.66446,2430.5,2430.1,4.92348]
[1730741757759,0.55,2430.2,2429.9,4.11538]
[1730741758044,0.55,2430.2,2430.0,4.11522]
[1730741758222,0.55,2430.3,2430.0,4.11522]
[1730741758801,4.11441,2430.5,2430.1,4.11496]
[1730741759019,4.17351,2430.6,2430.1,4.11496]
[1730741759020,0.55,2430.6,2430.3,4.93401]
[1730741759221,0.55,2430.6,2430.3,9.04862]
[1730741759438,0.55,2430.6,2430.3,4.93391]
[1730741759800,0.55,2430.6,2430.3,9.04853]
[1730741760000,0.55,2430.6,2430.3,4.93391]
[1730741760210,0.55,2430.6,2430.0,1.01221804]
[1730741760211,5.14247155,2430.6,2430.0,1.01221804]
[1730741760440,0.55,2430.4,2430.1,8.35866497]
[1730741760732,0.55,2430.4,2430.1,4.11494]
[1730741760940,0.55,2430.4,2430.2,4.11477]
[1730741761099,0.55,2430.5,2430.2,4.11477]
[1730741761529,0.55,2430.6,2430.3,4.11462]
[1730741762452,0.55,2430.6,2430.4,4.11454]
[1730741762774,0.55,2430.6,2430.4,4.89464]
[1730741765057,0.55,2430.6,2430.3,4.11467]
[1730741765258,0.55,2430.6,2430.4,4.11451]
[1730741766073,0.55,2430.6,2430.5,4.11437]
[1730741768156,0.55,2430.6,2430.2,0.7875]
[1730741768362,0.55,2430.6,2430.5,4.11437]
[1730741768882,0.15365158,2430.6,2430.5,4.90917]
[1730741769084,0.15365158,2430.6,2430.5,5.81154]
[1730741769375,0.1183655,2430.7,2430.6,4.11421]
[1730741769588,0.0591655,2430.7,2430.4,4.11443]
[1730741769788,0.2077896,2430.7,2430.4,4.11443]
[1730741769975,0.0591655,2430.7,2430.4,4.11443]
[1730741770130,0.1486241,2430.6,2430.4,4.11443]
[1730741770330,0.1486241,2430.6,2430.5,4.11437]
[1730741771455,0.1486241,2430.6,2430.5,5.72985]
[1730741771783,0.0591655,2430.7,2430.6,4.11421]
[1730741771948,0.0591655,2430.7,2430.5,4.90697]
[1730741772151,0.2078195,2430.7,2430.5,4.90693]
[1730741772666,0.2078195,2430.7,2430.5,4.11433]
[1730741772982,0.55,2430.6,2430.3,0.7873]
[1730741773282,0.55,2430.6,2430.4,4.11443]
[1730741773585,0.14867699,2430.5,2430.3,4.11468]
[1730741774086,0.14867699,2430.5,2430.4,4.11454]
[1730741774394,0.55,2430.4,2429.7,4.97453325]
[1730741774683,0.69866089,2430.3,2430.2,4.11476]
[1730741774880,0.55,2430.2,2430.1,4.11501]
[1730741775270,0.55,2430.2,2430.1,4.2437772]
[1730741775451,0.14863561,2430.2,2430.1,5.84566792]
[1730741775788,0.0592,2430.6,2430.1,5.84566792]
[1730741775789,0.55,2430.6,2430.3,4.11455]
[1730741775967,0.55,2430.6,2430.4,4.11445]
[1730741776152,0.14861031,2430.5,2430.4,4.11445]
[1730741776560,0.14861031,2430.5,2430.3,4.11455]
[1730741776561,0.69861031,2430.5,2430.2,4.11475]
[1730741776743,0.69861031,2430.5,2430.3,4.2434659]
[1730741776744,0.55,2430.4,2430.3,4.2434659]
[1730741776945,0.69859652,2430.4,2430.3,4.11471]
[1730741777783,0.69859652,2430.4,2430.2,4.11475]
[1730741778080,0.69859652,2430.4,2430.1,7.88096]
[1730741778280,0.69859652,2430.4,2430.1,0.766]
[1730741778442,0.69859652,2430.4,2430.1,4.88097]
[1730741778641,0.69859652,2430.4,2430.1,4.11497]
[1730741778841,0.69859652,2430.4,2430.0,4.1151]
[1730741778842,1.65053717,2430.4,2430.0,4.1151]
[1730741779461,5.76511717,2430.4,2430.0,4.1151]
[1730741779759,1.65053717,2430.4,2430.1,0.12877075]
[1730741779943,1.65053717,2430.4,2430.0,4.1151]
[1730741780143,0.75779652,2430.4,2430.1,4.2438105]
[1730741780355,0.75779652,2430.4,2430.1,4.11504]
[1730741781199,4.87241652,2430.4,2430.0,4.1151]
[1730741781661,0.75779652,2430.4,2430.1,4.11503]
[1730741782064,4.87234652,2430.4,2430.0,4.11518]
[1730741782278,4.87234652,2430.4,2430.0,8.23027]
[1730741782579,4.87234652,2430.4,2430.1,0.1287713]
[1730741782744,5.77100717,2430.4,2430.0,4.11509]
[1730741782941,5.77100717,2430.4,2430.1,0.12877111]
[1730741783249,0.55,2430.2,2429.9,4.11535]
[1730741783446,0.55,2430.2,2430.0,0.12877358]
[1730741783788,0.55,2430.2,2429.9,4.11535]
[1730741783789,0.14855975,2430.1,2429.9,4.11535]
[1730741783993,0.69855975,2430.1,2430.0,0.12877516]
[1730741784591,0.69855975,2430.1,2429.9,4.11535]
[1730741785347,0.55,2430.0,2429.8,0.2060413]
[1730741785560,1.23491143,2430.0,2429.8,4.11555]
[1730741785758,0.69855745,2430.0,2429.8,4.11555]
[1730741786180,0.69855745,2430.0,2429.7,4.9444]
[1730741786387,0.69855745,2430.0,2429.8,0.12878817]
[1730741786599,0.75775745,2430.0,2429.7,4.1157]
[1730741786758,0.75775745,2430.0,2429.8,0.12878961]
[1730741786959,0.75775745,2430.0,2429.7,4.11564]
[1730741787189,0.75775745,2430.0,2429.8,0.1287893]
[1730741787396,0.69855745,2430.0,2429.7,4.11563]
[1730741787558,0.69855745,2430.0,2429.8,4.24427911]
[1730741787766,0.69855745,2430.0,2429.8,4.11549]
[1730741788660,0.69855745,2430.0,2429.7,4.11563]
[1730741788857,0.69855745,2430.0,2429.8,0.12878496]
[1730741789067,0.69855745,2430.0,2429.7,8.23129]
[1730741789294,0.69855745,2430.0,2429.8,0.12878421]
[1730741789495,0.69855745,2430.0,2429.7,8.23129]
[1730741789703,0.69855745,2430.0,2429.8,0.12878407]
[1730741789983,0.69855745,2430.0,2429.7,4.11562]
[1730741790381,0.69855745,2430.0,2429.8,0.12878837]
[1730741790611,0.69855745,2430.0,2429.7,4.11562]
[1730741790761,0.69855745,2430.0,2429.8,0.12878361]
[1730741790961,0.14855745,2430.0,2429.9,4.11539]
[1730741791274,4.1144,2430.5,2430.1,4.11495]
[1730741791275,0.55,2430.4,2430.1,4.11495]
[1730741791596,0.0592,2430.5,2430.2,4.11482]
[1730741791802,0.0592,2430.5,2430.0,0.7747]
[1730741792106,4.17359,2430.5,2430.1,4.11505]
[1730741792261,4.17359,2430.5,2430.0,4.88992]
[1730741792262,0.828782,2430.4,2430.0,4.88992]
[1730741792696,0.828782,2430.4,2430.1,4.11505]
[1730741792906,0.828782,2430.4,2430.0,4.88988]
[1730741793204,0.55,2430.0,2429.8,4.11556]
[1730741794403,0.55,2430.0,2429.6,4.92196]
[1730741794404,0.55,2430.0,2429.7,4.11564]
[1730741794764,0.55,2430.0,2429.8,4.11554]
[1730741795895,0.55,2430.0,2429.6,0.8061]
[1730741796093,0.55,2430.0,2429.8,4.11546]
[1730741796411,0.55,2430.0,2429.7,4.11566]
[1730741797262,0.55,2430.0,2429.6,0.8061]
[1730741797468,0.55,2430.0,2429.7,4.24450692]
[1730741797712,0.55,2430.0,2429.7,4.11572]
[1730741798069,4.66522,2430.0,2429.6,4.92198]
[1730741798304,0.55,2430.0,2429.7,0.12878862]
[1730741798505,0.14844018,2429.9,2429.6,4.92188]
[1730741798711,0.14844018,2429.9,2429.7,0.12878925]
[1730741798712,0.55,2429.8,2429.7,0.12878925]
[1730741799120,0.69839881,2429.8,2429.7,0.12878925]
[1730741800088,0.69839881,2429.8,2429.5,7.11603]
[1730741800313,0.69839881,2429.8,2429.6,0.12879681]
[1730741800515,0.69839881,2429.8,2429.7,0.1287941]
[1730741800824,0.69839881,2429.8,2429.7,0.1287944]
[1730741801320,0.69839881,2429.8,2429.6,0.12879919]
[1730741801614,1.17976169,2429.8,2429.4,4.90941]
[1730741801819,1.17976169,2429.8,2429.2,3.0]
[1730741801820,0.55,2429.6,2429.2,4.89389]
[1730741802021,0.55,2429.6,2429.3,4.24520495]
[1730741802317,0.69838958,2429.5,2429.2,4.89394]
[1730741802480,0.55,2429.4,2429.3,4.24522012]
[1730741802674,0.69836429,2429.4,2429.3,4.11641]
[1730741803188,0.69836429,2429.4,2429.2,4.89397]
[1730741803597,0.69836429,2429.4,2429.0,4.89302]
[1730741803782,0.69836429,2429.4,2429.1,4.24546914]
[1730741803980,0.69836429,2429.4,2429.0,4.89302]
[1730741804179,0.55,2429.2,2429.1,0.12882071]
[1730741804524,0.55,2429.0,2428.8,4.11724]
[1730741804711,0.55,2429.1,2428.8,4.11724]
[1730741805224,0.55,2428.9,2428.8,4.11724]
[1730741805704,0.69815958,2428.9,2428.8,4.11724]
[1730741805910,0.69815958,2428.9,2428.7,4.11736]
[1730741806491,0.69815958,2428.9,2428.2,0.7574]
[1730741806492,0.55,2428.7,2428.2,0.7574]
[1730741806690,0.55,2428.5,2428.2,4.87559]
[1730741806900,0.55,2428.5,2428.3,4.11808]
[1730741807131,0.14813658,2428.6,2428.3,4.11808]
[1730741807132,0.55,2428.6,2428.3,4.11808]
[1730741807314,4.12658,2429.2,2427.9,4.11877]
[1730741807315,0.0592,2429.2,2428.5,0.773]
[1730741807499,0.0592,2429.2,2428.9,4.11706]
[1730741807705,0.0592,2429.4,2429.0,4.11686]
[1730741807908,0.0592,2429.4,2429.0,4.11683]
[1730741808117,4.11591,2429.6,2429.2,4.11648]
[1730741808118,0.0592,2429.6,2429.2,4.11648]
[1730741808436,4.9511395,2429.6,2429.2,4.11648]
[1730741809291,4.11513,2430.1,2429.6,4.11579]
[1730741809627,0.0592,2430.0,2429.7,4.11572]
[1730741809832,0.0592,2430.2,2429.5,4.89366]
[1730741810071,4.11522,2430.0,2429.5,9.00961]
[1730741810532,4.11522,2430.0,2429.6,4.11589]
[1730741810688,0.7700175,2429.9,2429.5,4.89365]
[1730741810894,0.7700175,2429.9,2429.6,4.11588]
[1730741811539,4.11607,2429.5,2429.0,4.11684]
[1730741811712,0.55,2429.2,2428.9,0.8004]
[1730741811931,0.55,2429.2,2428.6,0.92922512]
[1730741812132,4.66672,2429.2,2428.7,4.11733]
[1730741812603,0.55,2429.3,2429.0,4.11689]
[1730741812810,5.5386422,2429.3,2428.9,4.11706]
[1730741813035,0.55,2429.1,2428.8,4.11718]
[1730741813354,0.55,2429.1,2428.8,8.23436]
[1730741813646,0.13851505,2429.0,2428.9,4.11708]
[1730741813852,0.13851505,2429.0,2428.9,4.94078]
[1730741814064,0.55,2429.3,2429.0,4.1169]
[1730741815021,0.55,2429.1,2428.8,4.11724]
[1730741815234,0.55,2429.2,2428.8,4.11724]
[1730741816115,4.66667,2429.2,2428.8,4.11724]
[1730741816746,4.66667,2429.2,2428.7,4.92771]
[1730741817323,4.66667,2429.2,2428.6,4.11744]
[1730741817324,0.55,2428.9,2428.6,4.11744]
[1730741817711,0.55,2428.9,2428.5,4.90216]
[1730741818142,4.66709,2428.9,2428.5,4.90216]
[1730741818377,4.66709,2428.9,2428.5,4.11776]
[1730741818671,0.55,2428.7,2428.3,9.02051]
[1730741819010,0.55,2428.7,2428.4,4.11792]
[1730741819427,4.66744,2428.7,2428.3,4.118]
[1730741819629,4.66744,2428.7,2428.4,4.11783]
[1730741819630,0.55,2428.7,2428.4,4.11783]
[1730741819827,0.55,2428.8,2428.5,4.11766]
[1730741820245,4.66726,2428.8,2428.3,8.23601]
[1730741820564,0.55,2428.8,2428.4,4.11791]
[1730741821116,4.11709,2428.9,2428.5,4.11776]
[1730741821117,0.55,2428.9,2428.5,4.11776]
[1730741821328,4.11731,2428.8,2428.3,8.23599]
[1730741821528,0.55,2428.7,2428.4,4.1179]
[1730741821729,0.55,2428.7,2428.3,4.11799]
[1730741821962,0.55,2428.5,2428.2,4.11825]
[1730741822430,4.66776,2428.5,2428.1,4.92363]
[1730741822654,0.55,2428.5,2428.1,4.92363]
[1730741822854,0.55,2428.5,2428.2,4.11819]
[1730741823682,0.55,2428.5,2428.2,8.23638]
[1730741823843,0.55,2428.5,2428.1,0.8053]
[1730741824044,0.55,2428.5,2428.2,4.11813]
[1730741824230,0.55,2428.5,2428.3,4.11802]
[1730741825247,0.55,2428.5,2428.4,4.11793]
[1730741825556,0.55,2428.9,2428.5,4.11768]
[1730741825779,5.64405474,2428.9,2428.4,4.11793]
[1730741825938,5.64405474,2428.9,2428.4,4.11785]
[1730741826269,5.64405474,2428.9,2428.5,4.11775]
[1730741826435,1.52688474,2428.9,2428.5,4.11775]
[1730741826636,0.55,2428.9,2428.5,4.91178]
[1730741826832,0.55,2428.9,2428.6,4.11749]
[1730741827034,0.55,2428.9,2428.5,4.91178]
[1730741827232,0.55,2428.9,2428.6,4.11758]
[1730741827632,0.55,2428.9,2428.5,4.91178]
[1730741827935,0.55,2428.9,2428.4,4.11789]
[1730741827936,5.551497,2428.9,2428.4,4.11789]
[1730741828379,5.551497,2428.9,2428.5,4.11774]
[1730741828539,0.55,2428.7,2428.5,4.11774]
[1730741828956,0.55,2428.8,2428.5,4.11774]
[1730741829268,0.55,2428.9,2428.6,4.11747]
[1730741829487,0.0592,2429.0,2428.7,4.11742]
[1730741829788,0.55,2429.1,2428.8,4.11718]
[1730741830202,0.472544,2429.3,2428.9,4.11695]
[1730741830355,4.11665,2429.2,2428.8,4.11724]
[1730741830558,4.11648,2429.3,2428.8,4.11724]
[1730741830759,4.17595,2429.1,2428.7,4.11734]
[1730741831061,0.0592,2429.1,2428.8,0.1288376]
[1730741831266,0.0592,2429.1,2428.7,8.23467]
[1730741831497,0.0592,2429.1,2428.8,0.12883714]
[1730741831688,0.0592,2429.1,2428.7,8.23467]
[1730741831896,4.17597,2429.1,2428.8,0.12883703]
[1730741832099,4.11711,2428.9,2428.6,0.20613915]
[1730741832392,4.11711,2428.9,2428.7,0.1288452]
[1730741832628,4.11711,2428.9,2428.5,4.11776]
[1730741832913,4.66706,2429.0,2428.6,4.24643176]
[1730741833200,4.11712,2428.9,2428.5,4.11767]
[1730741833354,0.55,2428.8,2428.6,0.12884489]
[1730741833555,0.55,2428.8,2428.7,0.12884489]
[1730741833861,0.55,2428.8,2428.5,4.11776]
[1730741834059,0.55,2428.8,2428.6,0.12885194]
[1730741834400,1.01671,2428.8,2428.4,4.32400234]
[1730741834690,0.55,2428.9,2428.5,4.45278048]
[1730741834900,0.55,2428.9,2428.6,4.45258048]